[Event "DEN-ch 2019"]
[Site "Svendborg"]
[Date "2019.04.21"]
[Round "9.4"]
[White "Ochsner, Bjorn Moller"]
[Black "Chatalbashev, Boris"]
[Result "1/2-1/2"]
[ECO "B06"]
[WhiteElo "2486"]
[BlackElo "2521"]
[Annotator "ChessBase"]
[PlyCount "107"]
[EventDate "2019.04.13"]
[EventType "tourn"]
[EventCountry "DEN"]
[SourceTitle "playchess.com"]
[Source "ChessBase"]
[SourceQuality "1"]
[TimeControl "40/5400+30:1800+30"]

1. e4 {[%emt 0:00:00]} g6 {[%emt 0:00:00]} 2. d4 {[%emt 0:00:00]} Bg7 {[%emt 0:00:00]} 3. Nc3 {[%emt 0:00:08]} d5 {[%emt 0:00:00]} 4. exd5 {[%emt 0:00:38]} Nf6 {[%emt 0:00:05]} 5. Bc4 {[%emt 0:00:53]} Nbd7 {[%emt 0:00:23]} 6. Bg5 {[%emt 0:00:43]} Nb6 {[%emt 0:00:09]} 7. Bxf6 {[%emt 0:03:50]} Bxf6 {[%emt 0:00:17]} 8. Bb3 {[%emt 0:00:22]} O-O {[%emt 0:00:06]} 9. Nge2 {[%emt 0:00:38]} a5 {[%emt 0:00:08]} 10. a4 {[%emt 0:00:29]} c6 {[%emt 0:00:23]} 11. dxc6 {[%emt 0:00:37]} bxc6 {[%emt 0:00:05]} 12. O-O {[%emt 0:00:17]} Ba6 {[%emt 0:00:50]} 13. Ne4 {[%emt 0:02:41]} Bg7 {[%emt 0:03:13]} 14. c3 {[%emt 0:17:17]} Nd7 {[%emt 0:00:30]} 15. Bc2 {[%emt 0:10:32]} Qb6 {[%emt 0:12:47]} 16. Bd3 {[%emt 0:03:52]} Qxb2 {[%emt 0:13:03]} 17. Bxa6 {[%emt 0:00:20]} Rxa6 {[%emt 0:00:07]} 18. Qd3 {[%emt 0:00:20]} Qb7 {[%emt 0:01:19]} 19. Rab1 {[%emt 0:01:09]} Rb6 {[%emt 0:06:01]} 20. Rxb6 {[%emt 0:10:35]} Qxb6 {[%emt 0:00:23]} 21. Rb1 {[%emt 0:01:03]} Qc7 {[%emt 0:02:50]} 22. Qa6 {[%emt 0:03:14]} Rb8 {[%emt 0:01:10]} 23. Rxb8+ {[%emt 0:01:32]} Qxb8 {[%emt 0:00:05]} 24. f3 {[%emt 0:01:32]} Bh6 {[%emt 0:04:38]} 25. Kf2 {[%emt 0:01:38]} Nb6 {[%emt 0:06:19]} 26. g3 {[%emt 0:10:30]} Nxa4 {[%emt 0:05:55]} 27. Qxa5 {[%emt 0:03:56]} Nb2 {[%emt 0:00:08]} 28. f4 {[%emt 0:01:20]} Nd1+ {[%emt 0:03:37]} 29. Kf3 {[%emt 0:01:24]} Qb1 {[%emt 0:04:15]} 30. Nf2 {[%emt 0:05:11]} Nxf2 {[%emt 0:07:57]} 31. Kxf2 {[%emt 0:00:06]} Qh1 {[%emt 0:00:05]} 32. h4 {[%emt 0:02:26]} e6 {[%emt 0:00:45]} 33. Qe5 {[%emt 0:07:56]} Bf8 {[%emt 0:01:45]} 34. Ke3 {[%emt 0:00:53]} c5 {[%emt 0:07:29]} 35. dxc5 {[%emt 0:01:23]} h5 {[%emt 0:01:28]} 36. Kd3 {[%emt 0:02:02]} Qd1+ {[%emt 0:03:47]} 37. Ke3 {[%emt 0:02:19]} Qa4 {[%emt 0:00:51]} 38. Nd4 {[%emt 0:02:55]} Qc4 {[%emt 0:01:39]} 39. c6 {[%emt 0:01:28]} Qxc3+ {[%emt 0:00:30]} 40. Ke2 {[%emt 0:00:22]} Qc4+ {[%emt 0:06:00]} 41. Kd2 {[%emt 0:15:00]} Kh7 {[%emt 0:29:26]} 42. Qe4 {[%emt 0:08:09]} Bb4+ {[%emt 0:02:15]} 43. Ke3 {[%emt 0:03:21]} Qc1+ {[%emt 0:03:19]} 44. Kf3 {[%emt 0:03:05]} Qh1+ {[%emt 0:01:46]} 45. Ke3 {[%emt 0:00:01]} Bd2+ {[%emt 0:01:16]} 46. Kd3 {[%emt 0:00:03]} Qb1+ {[%emt 0:00:06]} 47. Nc2 {[%emt 0:00:14]} Ba5 {[%emt 0:00:02]} 48. Kc4 {[%emt 0:01:36]} Qb2 {[%emt 0:02:05]} 49. Qd3 {[%emt 0:00:53]} Qb1 {[%emt 0:01:17]} 50. Qb3 {[%emt 0:00:33]} Qf1+ {[%emt 0:00:17]} 51. Qd3 {[%emt 0:00:26]} Qb1 {[%emt 0:00:33]} 52. Qb3 {[%emt 0:00:05]} Qf1+ {[%emt 0:00:08]} 53. Qd3 {[%emt 0:02:24]} Qb1 {[%emt 0:01:00]} 54. Qb3 {[%emt 0:00:11]} 1/2-1/2